[Event "6e festival d'échecs d'Allauch"]
[Site "Allauch, France"]
[Date "2024.08.27"]
[Round "3.8"]
[White "Madi, Chahinez"]
[Black "Caruncho, Alfonso"]
[Result "1/2-1/2"]
[TimeControl "1 h 30 min (+30s/coup)"]
[WhiteElo "1668"]
[BlackElo "1600"]

1. e4 {[%clk 01:30:57]} {[%emt 00:00:03]} c5 {[%clk 01:30:51]} {[%emt
00:00:08]} 2. Nf3 {[%clk 01:31:22]} {[%emt 00:00:06]} e6 {[%clk 01:31:07]}
{[%emt 00:00:14]} 3. d4 {[%clk 01:31:29]} {[%emt 00:00:22]} cxd4 {[%clk
01:31:31]} {[%emt 00:00:06]} 4. Nxd4 {[%clk 01:31:48]} {[%emt 00:00:10]} a6
{[%clk 01:31:52]} {[%emt 00:00:10]} 5. Nc3 {[%clk 01:31:24]} {[%emt 00:00:53]}
Qc7 {[%clk 01:31:54]} {[%emt 00:00:28]} 6. g3 {[%clk 01:28:34]} {[%emt
00:03:21]} Nc6 {[%clk 01:31:38]} 7. Nf3 {[%clk 01:28:02]} {[%emt 00:01:48]} Bc5
{[%clk 01:30:07]} 8. Bg2 {[%clk 01:28:02]} b5 {[%clk 01:30:07]} 9. Bf4 {[%clk
01:28:02]} Qb6 {[%clk 01:30:07]} 10. O-O {[%clk 01:28:02]} Bb7 {[%emt
00:15:08]} 11. Bd6 {[%clk 01:22:46]} {[%emt 00:02:26]} Nd4 {[%clk 01:20:15]}
{[%emt 00:03:34]} 12. e5 {[%clk 01:10:20]} {[%emt 00:12:56]} Nf5 {[%clk
01:16:41]} {[%emt 00:04:04]} 13. Bxc5 {[%clk 01:07:35]} {[%emt 00:03:16]} Qxc5
{[%clk 01:16:07]} {[%emt 00:01:02]} 14. Re1 {[%clk 01:05:18]} {[%emt 00:02:49]}
d5 {[%clk 01:07:36]} {[%emt 00:08:59]} 15. exd6 {[%clk 01:00:45]} {[%emt
00:05:04]} Nxd6 {[%clk 01:07:48]} {[%emt 00:00:17]} 16. Re5 {[%clk 00:52:45]}
{[%emt 00:08:28]} Qc7 {[%clk 01:02:12]} {[%emt 00:06:08]} 17. Nd5 {[%clk
00:50:11]} {[%emt 00:03:04]} Bxd5 {[%clk 01:01:56]} {[%emt 00:00:47]} 18. Qxd5
{[%clk 00:50:23]} {[%emt 00:00:18]} Rd8 {[%clk 01:01:55]} {[%emt 00:00:30]} 19.
Qb3 {[%clk 00:33:12]} {[%emt 00:17:40]} Ne7 {[%clk 00:59:09]} {[%emt 00:03:17]}
20. Bh3 {[%clk 00:27:25]} {[%emt 00:06:16]} Nc4 {[%clk 00:54:43]} {[%emt
00:04:57]} 21. Re2 {[%clk 00:26:54]} {[%emt 00:00:58]} O-O {[%clk 00:51:02]}
{[%emt 00:04:13]} 22. Rae1 {[%clk 00:25:12]} {[%emt 00:02:12]} Nc6 {[%clk
00:40:25]} {[%emt 00:11:08]} 23. a4 {[%clk 00:20:16]} {[%emt 00:05:26]} N4a5
{[%clk 00:30:06]} {[%emt 00:10:50]} 24. Qe3 {[%clk 00:15:05]} {[%emt 00:05:32]}
Rd6 {[%clk 00:27:17]} {[%emt 00:03:28]} 25. Ng5 {[%clk 00:12:31]} {[%emt
00:03:03]} Nd4 {[%clk 00:22:13]} {[%emt 00:05:33]} 26. Rd2 {[%clk 00:07:34]}
{[%emt 00:05:27]} Qc5 {[%clk 00:08:17]} {[%emt 00:14:28]} 27. c3 {[%clk
00:05:59]} {[%emt 00:02:05]} Nc4 {[%clk 00:03:50]} {[%emt 00:04:56]} 28. cxd4
{[%clk 00:01:25]} {[%emt 00:05:04]} Nxe3 {[%emt 00:00:48]} 29. dxc5 {[%emt
00:00:06]} Rxd2 {[%emt 00:00:08]} 30. Rxe3 {[%emt 00:00:11]} Rxb2 {[%clk
00:01:43]} {[%emt 00:01:24]} 31. axb5 {[%clk 00:01:14]} {[%emt 00:00:42]} axb5
{[%clk 00:01:49]} {[%emt 00:00:24]} 32. c6 {[%clk 00:01:08]} {[%emt 00:00:35]}
Rc2 {[%clk 00:02:02]} {[%emt 00:00:17]} 33. c7 {[%clk 00:01:11]} {[%emt
00:00:28]} Rxc7 {[%clk 00:01:41]} {[%emt 00:00:48]} 34. Kg2 {[%clk 00:01:27]}
{[%emt 00:00:18]} Re8 {[%clk 00:01:57]} {[%emt 00:00:12]} 35. Rb3 {[%clk
00:01:31]} {[%emt 00:00:26]} h6 {[%clk 00:02:13]} {[%emt 00:00:14]} 36. Nf3
{[%clk 00:01:51]} {[%emt 00:00:10]} b4 {[%clk 00:02:30]} {[%emt 00:00:13]} 37.
Ne5 {[%clk 00:01:55]} {[%emt 00:00:25]} Rb8 {[%clk 00:02:48]} 1/2-1/2

[Event "6e festival d'échecs d'Allauch"]
[Site "Allauch, France"]
[Date "2024.08.28"]
[Round "4.1"]
[White "Degraeve, Jean-Marc"]
[Black "Ben Amar, Yanis"]
[Result "1-0"]
[TimeControl "1 h 30 min (+30s/coup)"]
[WhiteElo "2487"]
[BlackElo "1980"]

1. e4 {[%clk 01:24:18]} {[%emt 00:06:42]} e5 {[%clk 01:30:44]} {[%emt
00:00:16]} 2. Bc4 {[%clk 01:24:25]} {[%emt 00:00:24]} Nf6 {[%clk 01:31:05]}
{[%emt 00:00:09]} 3. d3 {[%clk 01:24:49]} {[%emt 00:00:07]} Nc6 {[%clk
01:31:29]} {[%emt 00:00:05]} 4. Nf3 {[%clk 01:24:48]} {[%emt 00:00:30]} Bc5
{[%clk 01:31:27]} {[%emt 00:00:33]} 5. O-O {[%clk 01:24:48]} {[%emt 00:00:30]}
d6 {[%clk 01:30:56]} {[%emt 00:01:02]} 6. c3 {[%clk 01:25:08]} {[%emt
00:00:10]} a6 {[%clk 01:31:19]} {[%emt 00:00:06]} 7. Bb3 {[%clk 01:25:16]}
{[%emt 00:00:22]} Ba7 {[%clk 01:31:39]} {[%emt 00:00:11]} 8. Nbd2 {[%clk
01:25:35]} {[%emt 00:00:10]} h6 {[%clk 01:31:03]} {[%emt 00:01:06]} 9. Re1
{[%clk 01:25:30]} {[%emt 00:00:36]} g5 {[%clk 01:30:41]} {[%emt 00:00:51]} 10.
Nf1 {[%clk 01:25:27]} {[%emt 00:00:33]} Nh5 {[%clk 01:29:06]} {[%emt 00:02:05]}
11. Be3 {[%clk 01:23:29]} {[%emt 00:02:27]} Bxe3 {[%clk 01:24:33]} {[%emt
00:05:03]} 12. Nxe3 {[%clk 01:12:20]} {[%emt 00:11:39]} Nf4 {[%clk 01:17:42]}
{[%emt 00:07:21]} 13. g3 {[%clk 01:11:15]} {[%emt 00:01:35]} Rg8 {[%clk
01:17:22]} {[%emt 00:00:50]} 14. Kh1 {[%clk 01:11:28]} {[%emt 00:00:17]} Nh3
{[%clk 01:17:08]} {[%emt 00:00:44]} 15. Qe2 {[%clk 01:09:57]} {[%emt 00:02:01]}
h5 {[%clk 01:16:07]} {[%emt 00:01:32]} 16. Ng1 {[%clk 01:10:10]} {[%emt
00:00:17]} h4 {[%clk 01:03:29]} {[%emt 00:13:07]} 17. Nxh3 {[%clk 01:10:17]}
{[%emt 00:00:24]} Bxh3 {[%clk 01:03:58]} 18. g4 {[%clk 01:10:24]} {[%emt
00:00:23]} Rg6 {[%clk 01:02:00]} {[%emt 00:02:28]} 19. Qf3 {[%clk 01:10:46]}
{[%emt 00:00:08]} Rf6 {[%clk 00:59:45]} {[%emt 00:02:45]} 20. Nf5 {[%clk
01:11:08]} {[%emt 00:00:07]} Bxg4 {[%clk 00:58:39]} {[%emt 00:01:36]} 21. Qxg4
{[%clk 01:11:30]} {[%emt 00:00:08]} Rg6 {[%clk 00:59:04]} {[%emt 00:00:05]} 22.
Re3 {[%clk 01:11:28]} {[%emt 00:00:33]} Qd7 {[%clk 00:59:14]} {[%emt 00:00:20]}
23. Rf3 {[%clk 01:11:50]} {[%emt 00:00:08]} O-O-O {[%clk 00:58:53]} {[%emt
00:00:51]} 24. Bxf7 {[%clk 01:12:11]} {[%emt 00:00:09]} Rf6 {[%clk 00:58:02]}
{[%emt 00:01:21]} 25. Ne7+ {[%clk 01:11:45]} 1-0

[Event "6e festival d'échecs d'Allauch"]
[Site "Allauch, France"]
[Date "2024.08.28"]
[Round "4.2"]
[White "Chaumet, Etienne"]
[Black "Degraeve, Remy"]
[Result "0-1"]
[TimeControl "1 h 30 min (+30s/coup)"]
[WhiteElo "2077"]
[BlackElo "2402"]

1. e4 {[%clk 01:30:57]} {[%emt 00:00:02]} e5 {[%clk 01:25:15]} {[%emt
00:05:46]} 2. Nf3 {[%clk 01:31:18]} {[%emt 00:00:08]} Nc6 {[%clk 01:25:42]}
{[%emt 00:00:03]} 3. Bb5 {[%clk 01:31:40]} {[%emt 00:00:08]} a6 {[%clk
01:26:08]} {[%emt 00:00:04]} 4. Ba4 {[%clk 01:32:04]} {[%emt 00:00:05]} Nf6
{[%clk 01:26:33]} {[%emt 00:00:05]} 5. O-O {[%clk 01:32:24]} {[%emt 00:00:10]}
d6 {[%clk 01:26:59]} {[%emt 00:00:05]} 6. Bxc6+ {[%clk 01:32:42]} {[%emt
00:00:11]} bxc6 {[%clk 01:27:26]} {[%emt 00:00:03]} 7. d4 {[%clk 01:32:55]}
{[%emt 00:00:17]} exd4 {[%clk 01:27:40]} {[%emt 00:00:16]} 8. Nxd4 {[%clk
01:33:12]} {[%emt 00:00:11]} c5 {[%clk 01:28:07]} {[%emt 00:00:04]} 9. Nc6
{[%clk 01:33:27]} {[%emt 00:00:15]} Qd7 {[%clk 01:28:34]} {[%emt 00:00:04]} 10.
Na5 {[%clk 01:33:43]} {[%emt 00:00:13]} Qa4 {[%clk 01:28:54]} {[%emt 00:00:10]}
11. Bd2 {[%clk 01:33:56]} {[%emt 00:00:17]} Be7 {[%clk 01:29:20]} {[%emt
00:00:05]} 12. Re1 {[%clk 01:23:18]} {[%emt 00:11:08]} Bg4 {[%clk 01:29:42]}
{[%emt 00:00:07]} 13. f3 {[%clk 01:22:21]} {[%emt 00:01:27]} Be6 {[%clk
01:30:09]} {[%emt 00:00:04]} 14. c4 {[%clk 01:09:23]} {[%emt 00:13:28]} Qxd1
{[%clk 01:20:07]} {[%emt 00:10:31]} 15. Rxd1 {[%clk 01:09:23]} {[%emt
00:00:30]} Nd7 {[%clk 01:18:35]} {[%emt 00:02:02]} 16. b3 {[%clk 00:59:52]}
{[%emt 00:10:01]} f5 {[%clk 01:14:23]} {[%emt 00:04:42]} 17. exf5 {[%clk
00:56:30]} {[%emt 00:03:52]} Bxf5 {[%clk 01:14:49]} {[%emt 00:00:04]} 18. Nc6
{[%clk 00:47:39]} {[%emt 00:09:20]} Bf6 {[%clk 01:12:19]} {[%emt 00:03:00]} 19.
Bc3 {[%clk 00:45:02]} {[%emt 00:03:08]} Kf7 {[%clk 01:12:41]} {[%emt 00:00:07]}
20. Bxf6 {[%clk 00:45:01]} {[%emt 00:00:31]} Nxf6 {[%clk 01:12:21]} {[%emt
00:00:50]} 21. Nc3 {[%clk 00:42:41]} {[%emt 00:02:50]} a5 {[%clk 01:03:06]}
{[%emt 00:09:46]} 22. Re1 {[%clk 00:38:56]} {[%emt 00:04:15]} Rhe8 {[%clk
01:00:30]} {[%emt 00:03:05]} 23. Nb5 {[%clk 00:32:47]} {[%emt 00:06:39]} Bd7
{[%clk 00:57:23]} {[%emt 00:03:37]} 24. Rxe8 {[%clk 00:20:19]} {[%emt
00:12:57]} Nxe8 {[%clk 00:57:14]} {[%emt 00:00:40]} 25. Nba7 {[%clk 00:20:36]}
{[%emt 00:00:13]} Bxc6 {[%clk 00:57:12]} {[%emt 00:00:33]} 26. Nxc6 {[%clk
00:21:04]} {[%emt 00:00:02]} Ra6 {[%clk 00:57:35]} {[%emt 00:00:06]} 27. Nb8
{[%clk 00:21:25]} {[%emt 00:00:09]} Rb6 {[%clk 00:58:00]} {[%emt 00:00:05]} 28.
Nd7 {[%clk 00:21:50]} {[%emt 00:00:06]} Rb7 {[%clk 00:58:27]} {[%emt 00:00:02]}
29. Re1 {[%clk 00:21:43]} {[%emt 00:00:37]} c6 {[%clk 00:58:26]} {[%emt
00:00:32]} 0-1

[Event "6e festival d'échecs d'Allauch"]
[Site "Allauch, France"]
[Date "2024.08.28"]
[Round "4.3"]
[White "Philippe, Guillaume"]
[Black "Charlier, Antoine"]
[Result "1-0"]
[TimeControl "1 h 30 min (+30s/coup)"]
[WhiteElo "2356"]
[BlackElo "2070"]

1. f4 {[%clk 01:30:49]} {[%emt 00:00:09]} d5 {[%clk 01:30:41]} {[%emt
00:00:21]} 2. Nf3 {[%clk 01:31:11]} {[%emt 00:00:07]} Nf6 {[%clk 01:30:19]}
{[%emt 00:00:52]} 3. g3 {[%clk 01:31:21]} {[%emt 00:00:20]} c5 {[%clk
01:23:41]} {[%emt 00:07:09]} 4. Bg2 {[%clk 01:31:30]} {[%emt 00:00:20]} Nc6
{[%clk 01:22:11]} {[%emt 00:01:59]} 5. O-O {[%clk 01:30:44]} {[%emt 00:01:16]}
Bf5 {[%clk 01:20:15]} {[%emt 00:02:27]} 6. d3 {[%clk 01:30:41]} {[%emt
00:00:33]} h6 {[%clk 01:19:11]} {[%emt 00:01:34]} 7. Nc3 {[%clk 01:30:37]}
{[%emt 00:00:35]} e6 {[%clk 01:16:18]} {[%emt 00:03:22]} 8. Ne5 {[%clk
01:30:13]} {[%emt 00:00:54]} Be7 {[%clk 00:59:30]} {[%emt 00:17:17]} 9. e4
{[%clk 01:29:23]} {[%emt 00:01:20]} Bh7 {[%clk 00:57:56]} {[%emt 00:02:04]} 10.
exd5 {[%clk 01:16:44]} {[%emt 00:13:10]} exd5 {[%clk 00:51:15]} {[%emt
00:07:12]} 11. Ng4 {[%clk 01:15:34]} {[%emt 00:01:38]} d4 {[%clk 00:42:45]}
{[%emt 00:09:01]} 12. Nxf6+ {[%clk 01:15:34]} {[%emt 00:00:29]} Bxf6 {[%clk
00:43:04]} {[%emt 00:00:12]} 13. Nd5 {[%clk 01:16:00]} {[%emt 00:00:04]} O-O
{[%clk 00:41:37]} {[%emt 00:01:58]} 14. Bd2 {[%clk 01:16:13]} {[%emt 00:00:16]}
Qd6 {[%clk 00:32:54]} {[%emt 00:09:12]} 15. f5 {[%clk 01:10:22]} {[%emt
00:06:21]} Rae8 {[%clk 00:27:32]} {[%emt 00:05:53]} 16. Qh5 {[%clk 01:08:25]}
{[%emt 00:02:26]} Nb4 {[%clk 00:21:12]} {[%emt 00:06:50]} 17. Nxb4 {[%clk
01:04:21]} {[%emt 00:04:34]} cxb4 {[%clk 00:20:59]} {[%emt 00:00:43]} 18. Bxb7
{[%clk 01:04:46]} {[%emt 00:00:05]} Re7 {[%clk 00:19:34]} {[%emt 00:01:55]} 19.
Bf3 {[%clk 01:01:49]} {[%emt 00:03:23]} Rc8 {[%clk 00:16:30]} {[%emt 00:03:37]}
20. Bd1 {[%clk 01:01:36]} {[%emt 00:00:43]} Qc5 {[%clk 00:14:17]} {[%emt
00:02:43]} 21. a3 {[%clk 01:00:00]} {[%emt 00:02:07]} bxa3 {[%clk 00:12:19]}
{[%emt 00:02:27]} 22. Rxa3 {[%clk 00:59:57]} {[%emt 00:00:33]} Rb8 {[%clk
00:11:55]} {[%emt 00:00:54]} 23. Ra5 {[%clk 00:57:08]} {[%emt 00:03:19]} Qc7
{[%clk 00:10:04]} {[%emt 00:02:21]} 24. b3 {[%clk 00:55:29]} {[%emt 00:02:09]}
Rbe8 {[%clk 00:08:45]} {[%emt 00:01:49]} 25. Ra6 {[%clk 00:53:03]} {[%emt
00:02:57]} Bg5 {[%clk 00:06:48]} {[%emt 00:02:27]} 26. Bxg5 {[%clk 00:41:53]}
{[%emt 00:11:40]} hxg5 {[%clk 00:07:17]} 27. Qxg5 {[%clk 00:42:14]} {[%emt
00:00:09]} Re1 {[%clk 00:07:02]} {[%emt 00:00:45]} 28. f6 {[%clk 00:42:42]}
{[%emt 00:00:02]} Bg6 {[%clk 00:06:18]} {[%emt 00:01:14]} 29. Qa5 {[%clk
00:39:09]} {[%emt 00:04:03]} Rxf1+ {[%clk 00:05:06]} {[%emt 00:01:42]} 30. Kxf1
{[%clk 00:39:30]} {[%emt 00:00:08]} Qd7 {[%clk 00:01:48]} {[%emt 00:03:49]} 31.
Rxa7 {[%clk 00:36:27]} {[%emt 00:03:34]} Qh3+ {[%clk 00:01:47]} {[%emt
00:00:30]} 32. Kg1 {[%clk 00:36:49]} {[%emt 00:00:07]} Re3 {[%clk 00:01:34]}
{[%emt 00:00:43]} 33. Qd2 {[%clk 00:29:26]} {[%emt 00:07:50]} Qe6 {[%clk
00:00:34]} {[%emt 00:01:34]} 34. Ra8+ {[%clk 00:22:29]} {[%emt 00:07:27]} Kh7
{[%clk 00:00:57]} {[%emt 00:00:07]} 35. fxg7 {[%clk 00:22:56]} {[%emt
00:00:04]} Kxg7 {[%clk 00:00:58]} {[%emt 00:00:29]} 36. Ra4 {[%clk 00:23:23]}
{[%emt 00:00:03]} Qe5 {[%clk 00:00:36]} {[%emt 00:00:52]} 37. Bg4 {[%clk
00:17:41]} {[%emt 00:06:10]} Qg5 {[%clk 00:00:41]} {[%emt 00:00:27]} 38. Qd1
{[%clk 00:17:36]} {[%emt 00:00:35]} Qe5 {[%clk 00:00:55]} {[%emt 00:00:16]} 39.
Kf2 {[%clk 00:17:45]} {[%emt 00:00:21]} Qf6+ {[%clk 00:01:02]} {[%emt
00:00:23]} 40. Kg2 {[%clk 00:17:33]} {[%emt 00:00:41]} Qe5 {[%clk 00:00:35]}
{[%emt 00:00:58]} 41. Bf3 {[%clk 00:17:48]} {[%emt 00:00:15]} Bf5 {[%clk
00:00:33]} {[%emt 00:00:33]} 42. Bg4 {[%clk 00:12:53]} {[%emt 00:05:24]} Bg6
{[%clk 00:00:35]} {[%emt 00:00:28]} 43. Ra1 {[%clk 00:09:09]} {[%emt 00:04:13]}
Qd6 {[%clk 00:00:33]} {[%emt 00:00:32]} 44. Bf3 {[%clk 00:09:01]} {[%emt
00:00:36]} Qe5 {[%clk 00:00:35]} {[%emt 00:00:30]} 45. Qd2 {[%clk 00:08:46]}
{[%emt 00:00:39]} Qf6 {[%clk 00:00:33]} {[%emt 00:00:38]} 46. Rf1 {[%clk
00:09:05]} {[%emt 00:00:10]} Qg5 {[%clk 00:00:42]} {[%emt 00:00:21]} 47. Rf2
{[%clk 00:09:15]} {[%emt 00:00:19]} Bh5 {[%clk 00:00:45]} {[%emt 00:00:28]} 48.
Ba8 {[%clk 00:08:11]} {[%emt 00:01:31]} Qe5 {[%clk 00:00:34]} {[%emt 00:00:44]}
49. Be4 {[%clk 00:07:38]} {[%emt 00:01:01]} Qg5 {[%clk 00:00:36]} {[%emt
00:00:30]} 50. Qb4 {[%clk 00:07:40]} {[%emt 00:00:28]} Qe5 {[%clk 00:00:32]}
{[%emt 00:00:34]} 51. Qb7 {[%clk 00:08:05]} {[%emt 00:00:04]} Re1 {[%clk
00:00:32]} {[%emt 00:00:32]} 52. Qd5 {[%clk 00:08:20]} {[%emt 00:00:15]} Qxd5
{[%clk 00:00:40]} {[%emt 00:00:22]} 53. Bxd5 {[%clk 00:08:45]} {[%emt
00:00:04]} Rc1 {[%clk 00:00:58]} {[%emt 00:00:12]} 54. h3 {[%clk 00:08:22]}
{[%emt 00:00:53]} f5 {[%clk 00:01:10]} {[%emt 00:00:18]} 55. b4 {[%clk
00:07:52]} {[%emt 00:01:00]} Be8 {[%clk 00:01:11]} {[%emt 00:00:29]} 56. Rxf5
{[%clk 00:06:13]} {[%emt 00:02:09]} Rxc2+ {[%clk 00:01:40]} {[%emt 00:00:02]}
57. Kf3 {[%clk 00:06:31]} {[%emt 00:00:12]} Rb2 {[%clk 00:02:02]} {[%emt
00:00:08]} 58. Re5 {[%clk 00:06:10]} {[%emt 00:00:51]} Bb5 {[%clk 00:01:54]}
{[%emt 00:00:39]} 59. Be4 {[%clk 00:05:54]} {[%emt 00:00:46]} Rxb4 {[%clk
00:02:11]} {[%emt 00:00:13]} 60. Rd5 {[%clk 00:06:19]} {[%emt 00:00:03]} Be8
{[%clk 00:01:19]} {[%emt 00:01:24]} 61. Kf4 {[%clk 00:06:37]} {[%emt 00:00:13]}
Bf7 {[%clk 00:01:21]} {[%emt 00:00:28]} 62. Rd6 {[%clk 00:07:00]} {[%emt
00:00:07]} Kf8 {[%clk 00:01:23]} {[%emt 00:00:27]} 63. Ke5 {[%clk 00:07:18]}
{[%emt 00:00:10]} Ke7 {[%clk 00:01:20]} {[%emt 00:00:36]} 64. Rxd4 {[%clk
00:07:43]} {[%emt 00:00:05]} Rb1 {[%clk 00:01:02]} {[%emt 00:00:48]} 65. Ra4
{[%clk 00:07:55]} {[%emt 00:00:19]} Be6 {[%clk 00:01:03]} {[%emt 00:00:29]} 66.
Ra7+ {[%clk 00:08:18]} {[%emt 00:00:07]} Bd7 {[%clk 00:01:32]} {[%emt
00:00:01]} 67. Bc6 {[%clk 00:08:33]} {[%emt 00:00:15]} 1-0

[Event "6e festival d'échecs d'Allauch"]
[Site "Allauch, France"]
[Date "2024.08.28"]
[Round "4.4"]
[White "Charvein, Gabriel"]
[Black "Petrosyan, Armen"]
[Result "1/2-1/2"]
[TimeControl "1 h 30 min (+30s/coup)"]
[WhiteElo "2011"]
[BlackElo "2344"]

1. e4 {[%clk 01:21:58]} {[%emt 00:09:02]} e5 {[%clk 01:30:47]} {[%emt
00:00:13]} 2. Nf3 {[%clk 01:22:22]} {[%emt 00:00:06]} Nc6 {[%clk 01:31:13]}
{[%emt 00:00:05]} 3. d4 {[%clk 01:22:48]} {[%emt 00:00:03]} exd4 {[%clk
01:31:38]} {[%emt 00:00:05]} 4. Nxd4 {[%clk 01:23:14]} {[%emt 00:00:04]} Nf6
{[%clk 01:31:58]} {[%emt 00:00:10]} 5. Nxc6 {[%clk 01:23:39]} {[%emt 00:00:05]}
bxc6 {[%clk 01:32:23]} {[%emt 00:00:05]} 6. e5 {[%clk 01:24:04]} {[%emt
00:00:05]} Qe7 {[%clk 01:32:44]} {[%emt 00:00:08]} 7. Qe2 {[%clk 01:24:31]}
{[%emt 00:00:03]} Nd5 {[%clk 01:33:09]} {[%emt 00:00:05]} 8. h4 {[%clk
01:24:57]} {[%emt 00:00:04]} Qe6 {[%clk 01:20:42]} {[%emt 00:12:57]} 9. g3
{[%clk 01:20:07]} {[%emt 00:05:21]} f6 {[%clk 01:20:27]} {[%emt 00:00:45]} 10.
c4 {[%clk 01:10:47]} {[%emt 00:09:50]} Bb4+ {[%clk 01:20:39]} {[%emt 00:00:17]}
11. Nd2 {[%clk 01:10:43]} {[%emt 00:00:33]} Nb6 {[%clk 01:20:24]} {[%emt
00:00:46]} 12. exf6 {[%clk 01:10:42]} {[%emt 00:00:31]} gxf6 {[%clk 01:03:35]}
{[%emt 00:17:19]} 13. Qxe6+ {[%clk 01:00:36]} {[%emt 00:10:36]} dxe6 {[%clk
01:04:02]} {[%emt 00:00:04]} 14. Bg2 {[%clk 01:00:58]} {[%emt 00:00:08]} Bb7
{[%clk 00:54:44]} {[%emt 00:09:48]} 15. O-O {[%clk 00:48:31]} {[%emt 00:12:58]}
Bxd2 {[%clk 00:45:51]} {[%emt 00:09:23]} 16. Bxd2 {[%clk 00:48:54]} {[%emt
00:00:07]} Nxc4 {[%clk 00:46:17]} {[%emt 00:00:03]} 17. Bc3 {[%clk 00:48:57]}
{[%emt 00:00:26]} Kf7 {[%clk 00:43:27]} {[%emt 00:03:21]} 18. Rac1 {[%clk
00:47:06]} {[%emt 00:02:20]} Nb6 {[%clk 00:39:22]} {[%emt 00:04:34]} 19. Bd4
{[%clk 00:32:02]} {[%emt 00:15:35]} Rhd8 {[%clk 00:22:39]} {[%emt 00:17:13]} 20.
Bxb6 {[%clk 00:19:26]} {[%emt 00:13:07]} cxb6 {[%clk 00:22:56]} {[%emt
00:00:12]} 21. Bxc6 {[%clk 00:19:48]} {[%emt 00:00:08]} Bxc6 {[%clk 00:21:18]}
{[%emt 00:02:08]} 22. Rxc6 {[%clk 00:20:16]} {[%emt 00:00:02]} Rac8 {[%clk
00:21:13]} {[%emt 00:00:35]} 23. Rfc1 {[%clk 00:20:19]} {[%emt 00:00:27]} Rxc6
{[%clk 00:21:30]} {[%emt 00:00:13]} 24. Rc4 Rc5 25. Rxc5 Rd7 26. Rc6 e5 27. Kf1
h5 28. Ke2 Kg6 29. Rc8 Kf5 30. Rh8 Rc7 31. Kd2 Kg4 32. Rf8 Rc6 33. Ke3 Kf5 34.
Rf7 a5 35. Rb7 Kg4 36. Rb8 Kf5 37. Rb7 Kg4 {[%clk 00:21:30]} 1/2-1/2

[Event "6e festival d'échecs d'Allauch"]
[Site "Allauch, France"]
[Date "2024.08.28"]
[Round "4.5"]
[White "Siguret, William"]
[Black "Ghio, Maxime"]
[Result "1/2-1/2"]
[TimeControl "1 h 30 min (+30s/coup)"]
[WhiteElo "1671"]
[BlackElo "1641"]

1. Nf3 {[%clk 01:30:52]} {[%emt 00:00:07]} Nf6 {[%clk 01:30:51]} {[%emt
00:00:10]} 2. g3 {[%clk 01:31:16]} {[%emt 00:00:07]} g6 {[%clk 01:29:55]}
{[%emt 00:01:25]} 3. Bg2 {[%clk 01:31:43]} {[%emt 00:00:03]} Bg7 {[%clk
01:29:29]} {[%emt 00:00:56]} 4. O-O {[%clk 01:32:08]} {[%emt 00:00:05]} d5
{[%clk 01:29:01]} {[%emt 00:00:57]} 5. d3 {[%clk 01:32:14]} {[%emt 00:00:23]}
O-O {[%clk 01:28:30]} {[%emt 00:01:01]} 6. Nbd2 {[%clk 01:32:42]} {[%emt
00:00:03]} b6 {[%clk 01:24:32]} {[%emt 00:04:28]} 7. e4 {[%clk 01:32:42]}
{[%emt 00:00:30]} Bb7 {[%clk 01:20:57]} {[%emt 00:04:05]} 8. Re1 {[%clk
01:32:53]} {[%emt 00:00:19]} dxe4 {[%clk 01:20:21]} {[%emt 00:01:06]} 9. Ng5
{[%clk 01:32:27]} {[%emt 00:00:56]} Nc6 {[%clk 01:05:55]} {[%emt 00:14:56]} 10.
Ngxe4 {[%clk 01:29:56]} {[%emt 00:03:01]} Re8 {[%clk 01:00:05]} {[%emt
00:06:19]} 11. Nxf6+ {[%clk 01:23:51]} {[%emt 00:06:36]} exf6 {[%clk 00:58:46]}
{[%emt 00:01:48]} 12. Rxe8+ {[%clk 01:19:10]} {[%emt 00:05:11]} Qxe8 {[%clk
00:58:41]} {[%emt 00:00:35]} 13. c3 {[%clk 01:19:12]} {[%emt 00:00:28]} Rd8
{[%clk 00:52:46]} {[%emt 00:06:25]} 14. d4 {[%clk 01:19:24]} {[%emt 00:00:18]}
Na5 {[%clk 00:52:25]} {[%emt 00:00:46]} 15. Bxb7 {[%clk 01:12:43]} {[%emt
00:07:16]} Nxb7 {[%clk 00:52:48]} {[%emt 00:00:07]} 16. Nc4 {[%clk 01:09:40]}
{[%emt 00:03:33]} c5 {[%clk 00:37:44]} {[%emt 00:15:34]} 17. Be3 {[%clk
01:08:45]} {[%emt 00:01:24]} cxd4 {[%clk 00:35:09]} {[%emt 00:03:06]} 18. Bxd4
{[%clk 01:07:11]} {[%emt 00:02:04]} f5 {[%clk 00:32:07]} {[%emt 00:03:31]} 19.
Qf3 {[%clk 01:01:10]} {[%emt 00:06:29]} Nd6 {[%clk 00:30:46]} {[%emt 00:01:53]}
20. Nxd6 {[%clk 00:59:29]} {[%emt 00:02:11]} Rxd6 {[%clk 00:31:08]} {[%emt
00:00:08]} 21. Bxg7 {[%clk 00:56:49]} {[%emt 00:03:01]} Kxg7 {[%clk 00:26:18]}
{[%emt 00:05:30]} 22. Rd1 {[%clk 00:53:54]} {[%emt 00:03:24]} Rxd1+ {[%clk
00:25:38]} {[%emt 00:01:10]} 23. Qxd1 {[%clk 00:54:13]} {[%emt 00:00:11]} Qe4
{[%clk 00:24:56]} {[%emt 00:01:12]} 24. Qd4+ {[%clk 00:49:06]} {[%emt
00:05:38]} Qxd4 {[%clk 00:25:17]} {[%emt 00:00:09]} 25. cxd4 {[%clk 00:49:31]}
{[%emt 00:00:06]} Kf6 {[%clk 00:25:25]} {[%emt 00:00:22]} 26. f4 {[%clk
00:47:57]} {[%emt 00:02:04]} Ke6 {[%clk 00:25:13]} {[%emt 00:00:41]} 27. Kf2
{[%clk 00:48:17]} {[%emt 00:00:10]} Kd5 {[%clk 00:24:03]} {[%emt 00:01:40]} 28.
Ke3 {[%clk 00:48:37]} {[%emt 00:00:11]} b5 {[%clk 00:23:32]} {[%emt 00:01:00]}
29. Kd3 {[%clk 00:48:05]} {[%emt 00:01:02]} f6 {[%clk 00:17:51]} {[%emt
00:06:11]} 30. b4 {[%clk 00:41:07]} {[%emt 00:07:29]} a6 {[%clk 00:16:44]}
{[%emt 00:01:36]} 31. h3 {[%clk 00:37:00]} {[%emt 00:04:36]} h6 {[%clk
00:15:55]} {[%emt 00:01:19]} 32. h4 {[%clk 00:36:18]} {[%emt 00:01:12]} g5
{[%clk 00:11:11]} {[%emt 00:05:14]} 33. h5 {[%clk 00:35:51]} {[%emt 00:00:58]}
Kd6 {[%clk 00:09:48]} {[%emt 00:01:52]} 34. Ke3 {[%clk 00:35:30]} {[%emt
00:00:51]} 1/2-1/2